bitfinex-derivatives/quotes_BTCF0:USTF0_20250325
["timestamp","ask_amount","ask_price","bid_price","bid_amount"]
[1742917939859,0.11974581,87843.0,87842.0,0.80173937]
[1742917940060,0.00492001,87843.0,87842.0,0.80173937]
[1742917940368,0.11874581,87843.0,87842.0,0.80173937]
[1742917940562,0.12758131,87843.0,87842.0,0.71173937]
[1742917940757,0.32788414,87843.0,87842.0,0.71173937]
[1742917941062,0.37778414,87843.0,87842.0,0.71173937]
[1742917941656,0.37678414,87843.0,87842.0,0.71173937]
[1742917941857,0.37681448,87843.0,87842.0,0.71173937]
[1742917943168,0.37683571,87843.0,87842.0,0.71173937]
[1742917943558,0.17453288,87843.0,87842.0,0.71173937]
[1742917943863,0.01080987,87843.0,87842.0,0.71173937]
[1742917944060,0.12463567,87843.0,87842.0,0.55211237]
[1742917944461,0.12463567,87843.0,87842.0,0.66593937]
[1742917944660,0.17033567,87843.0,87842.0,0.66593937]
[1742917944864,0.17038206,87843.0,87842.0,0.66593937]
[1742917945162,0.17038206,87843.0,87842.0,0.55211237]
[1742917945359,0.21718206,87843.0,87842.0,0.55211237]
[1742917945563,0.20824581,87843.0,87842.0,0.55211237]
[1742917945762,0.21718151,87843.0,87842.0,0.55211237]
[1742917946076,0.21720766,87843.0,87842.0,0.55211237]
[1742917946363,0.2229011,87843.0,87842.0,0.55211237]
[1742917946969,0.21393925,87843.0,87842.0,0.55211237]
[1742917947270,0.22291353,87843.0,87842.0,0.55211237]
[1742917947671,0.22491353,87843.0,87842.0,0.51652669]
[1742917948165,0.21693925,87843.0,87842.0,0.51652669]
[1742917948373,0.22592321,87843.0,87842.0,0.46882669]
[1742917948875,0.22477427,87843.0,87842.0,0.46882669]
[1742917949075,0.22677427,87843.0,87842.0,0.46882669]
[1742917949963,0.22684344,87843.0,87842.0,0.46882669]
[1742917950774,0.22784344,87843.0,87842.0,0.46882669]
[1742917950972,0.23561612,87843.0,87842.0,0.46882669]
[1742917951170,0.23559197,87843.0,87842.0,0.46882669]
[1742917951369,0.23259197,87843.0,87842.0,0.58265369]
[1742917951671,0.23559411,87843.0,87842.0,0.67585369]
[1742917952271,0.18879411,87843.0,87842.0,0.56202669]
[1742917952570,0.18879411,87843.0,87842.0,0.67585369]
[1742917952758,0.18873342,87843.0,87842.0,0.67585369]
[1742917953075,0.18473342,87843.0,87842.0,0.67585369]
[1742917953274,0.18673342,87843.0,87842.0,0.67585369]
[1742917953468,0.18104007,87843.0,87842.0,0.67585369]
[1742917953671,0.17221849,87843.0,87842.0,0.67585369]
[1742917953875,0.17021849,87843.0,87842.0,0.67585369]
[1742917954373,0.17021849,87843.0,87842.0,0.56202669]
[1742917954771,0.21971849,87843.0,87842.0,0.51452669]
[1742917955265,0.21871849,87843.0,87842.0,0.51452669]
[1742917956271,0.22071849,87843.0,87842.0,0.51452669]
[1742917956677,0.21971849,87843.0,87842.0,0.51452669]
[1742917956878,0.22171849,87843.0,87842.0,0.51452669]
[1742917957080,0.22071849,87843.0,87842.0,0.51452669]
[1742917957376,0.42569692,87843.0,87842.0,0.51452669]
[1742917957978,0.42669692,87843.0,87842.0,0.51452669]
[1742917960169,0.42569692,87843.0,87842.0,0.51452669]
[1742917960365,0.42569692,87843.0,87842.0,0.62835369]
[1742917960569,0.37619692,87843.0,87842.0,0.62835369]
[1742917960773,0.37419692,87843.0,87842.0,0.51452669]
[1742917960982,0.26843934,87843.0,87842.0,0.51452669]
[1742917961173,0.31733934,87843.0,87842.0,0.51452669]
[1742917961368,0.31433934,87843.0,87842.0,0.51452669]
[1742917961771,0.31633934,87843.0,87842.0,0.51452669]
[1742917962077,0.33085279,87843.0,87842.0,0.47894107]
[1742917962583,0.34494642,87843.0,87842.0,0.47894107]
[1742917962967,0.33612664,87843.0,87842.0,0.47894107]
[1742917963169,0.33412664,87843.0,87842.0,0.47894107]
[1742917963482,0.33512664,87843.0,87842.0,0.47894107]
[1742917964180,0.32203301,87843.0,87842.0,0.47894107]
[1742917964783,0.32103301,87843.0,87842.0,0.47894107]
[1742917964985,0.32203301,87843.0,87842.0,0.47894107]
[1742917965682,0.32003301,87843.0,87842.0,0.47894107]
[1742917965874,0.32203301,87843.0,87842.0,0.47894107]
[1742917966275,0.32203301,87843.0,87842.0,0.57474107]
[1742917968387,0.32003301,87843.0,87842.0,0.57474107]
[1742917968688,0.33514315,87843.0,87842.0,0.52884107]
[1742917969083,0.319113,87843.0,87842.0,0.52884107]
[1742917969284,0.1151858,87843.0,87842.0,2.61406807]
[1742917969479,0.1138258,87843.0,87842.0,2.72789157]
[1742917969783,0.1148258,87843.0,87842.0,2.50406457]
[1742917969980,0.1148258,87843.0,87842.0,2.61406457]
[1742917970490,0.1148258,87843.0,87842.0,2.60406457]
[1742917970784,0.1148258,87843.0,87842.0,2.50406457]
[1742917970785,0.001,87843.0,87842.0,2.50406457]
[1742917971089,0.003,87843.0,87842.0,2.70406457]
[1742917971285,0.0569103,87847.0,87846.0,0.1707295]
[1742917971489,0.0569103,87847.0,87846.0,0.8313295]
[1742917971490,0.18388759,87847.0,87846.0,0.8313295]
[1742917972176,0.19277618,87847.0,87846.0,0.8313295]
[1742917972585,0.195775,87847.0,87846.0,0.7213295]
[1742917972780,0.195775,87847.0,87846.0,0.7707295]
[1742917972994,0.197775,87847.0,87846.0,0.56441851]
[1742917973288,0.199135,87847.0,87846.0,0.67824041]
[1742917973989,0.21240474,87847.0,87846.0,0.65262123]
[1742917974374,0.21104474,87847.0,87846.0,0.65262123]
[1742917974685,0.21244475,87847.0,87846.0,0.70202123]
[1742917975088,0.26044474,87847.0,87846.0,0.70202123]
[1742917975293,0.247175,87847.0,87846.0,0.70202123]
[1742917975683,0.248535,87847.0,87846.0,0.70202123]
[1742917975879,0.247175,87847.0,87846.0,0.70202123]
[1742917976297,0.248535,87847.0,87846.0,0.70202123]
[1742917976489,0.24854366,87847.0,87846.0,0.70202123]
[1742917977293,0.25423678,87847.0,87846.0,0.70202123]
[1742917978491,0.20483678,87847.0,87846.0,0.70202123]
[1742917979893,0.20483678,87847.0,87846.0,0.58819933]
[1742917980197,0.20483678,87847.0,87846.0,0.70202123]
[1742917980691,0.20484923,87847.0,87846.0,0.70202123]
[1742917981398,0.20487499,87847.0,87846.0,0.70202123]
[1742917981901,0.21303045,87847.0,87846.0,0.70202123]
[1742917982198,0.09920985,87847.0,87846.0,0.70202123]
[1742917982389,0.09784985,87847.0,87846.0,0.70202123]
[1742917982898,0.14764985,87847.0,87846.0,0.70202123]
[1742917983191,0.14900985,87847.0,87846.0,0.70202123]
[1742917983396,0.13438245,87847.0,87846.0,0.70202123]
[1742917984589,0.13438245,87847.0,87846.0,0.53879933]
[1742917984793,0.13438245,87847.0,87846.0,0.65262123]
[1742917984794,0.18288245,87847.0,87846.0,0.65262123]
[1742917984988,0.18288245,87847.0,87846.0,0.53879933]
[1742917985500,0.18288245,87847.0,87846.0,0.65262123]
[1742917985694,0.18288245,87847.0,87846.0,0.53879933]
[1742917985894,0.18288245,87847.0,87846.0,0.58589933]
[1742917986090,0.18288245,87847.0,87846.0,0.53879933]
[1742917986287,0.22888245,87847.0,87846.0,0.53879933]
[1742917986490,0.22888245,87847.0,87846.0,0.65262123]
[1742917987001,0.22888245,87847.0,87846.0,0.53879933]
[1742917987589,0.22888245,87847.0,87825.0,0.0570042]
[1742917987590,0.94227215,87847.0,87825.0,8e-05]
[1742917987797,0.94227215,87847.0,87830.0,0.0475]
[1742917987798,0.1138413,87831.0,87830.0,0.0475]
[1742917987988,0.2258413,87831.0,87830.0,0.0475]
[1742917988196,0.37269676,87831.0,87830.0,0.0475]
[1742917988591,0.1138426,87830.0,87825.0,8e-05]
[1742917988800,0.1138504,87824.0,87808.0,0.056935]
[1742917989001,0.4761704,87824.0,87823.0,0.25045546]
[1742917989689,0.55633366,87824.0,87823.0,0.25045546]
[1742917989888,0.55633366,87824.0,87809.0,0.24332868]
[1742917989889,0.1138685,87810.0,87809.0,0.24332868]
[1742917990101,0.1138711,87808.0,87798.0,0.0935]
[1742917990402,0.49027506,87808.0,87807.0,0.40045554]
[1742917990601,0.51535184,87808.0,87807.0,0.40045554]
[1742917990795,0.60945184,87808.0,87807.0,0.40045554]
[1742917991304,0.5835949,87808.0,87807.0,0.40045554]
[1742917991493,0.1138802,87801.0,87795.0,0.0457]
[1742917991693,0.1154802,87801.0,87800.0,0.83375561]
[1742917992004,0.23590535,87801.0,87800.0,0.94763711]
[1742917992389,0.28290535,87801.0,87800.0,0.83375561]
[1742917992598,0.33000535,87801.0,87800.0,0.83375561]
[1742917993095,0.33000535,87801.0,87800.0,0.83575561]
[1742917993300,0.33000535,87801.0,87800.0,0.83775561]
[1742917994007,0.33000535,87801.0,87800.0,0.634]
[1742917994513,0.28170535,87801.0,87800.0,0.7478815]
[1742917994888,0.28170535,87801.0,87800.0,0.8422815]
[1742917995100,0.28170535,87801.0,87800.0,0.8898815]
[1742917995297,0.16982535,87801.0,87800.0,0.8898815]
[1742917995503,0.28174535,87801.0,87800.0,0.8898815]
[1742917996597,0.16982535,87801.0,87800.0,2.3898815]
[1742917997505,0.0569381,87804.0,87801.0,0.0569395]
[1742917997702,0.1138744,87806.0,87805.0,0.1708093]
[1742917997894,0.00152,87806.0,87805.0,0.7955093]
[1742917998094,0.0133038,87808.0,87807.0,0.1138724]
[1742917998308,0.00017079,87809.0,87807.0,1.0785448]
[1742917998495,0.1138711,87808.0,87807.0,0.9646724]
[1742917999203,0.1138711,87808.0,87807.0,0.6038724]
[1742917999401,0.1138711,87808.0,87807.0,0.9646724]
[1742917999604,0.12738836,87808.0,87807.0,0.9646724]
[1742918000999,0.12738836,87808.0,87807.0,0.9666724]
[1742918001507,0.12738836,87808.0,87807.0,0.6058724]
[1742918002595,0.12738836,87808.0,87807.0,0.491]
[1742918003407,0.17358836,87808.0,87807.0,0.491]
[1742918003602,0.17510836,87808.0,87807.0,0.491]
[1742918004202,0.58390836,87808.0,87807.0,0.491]
[1742918005612,0.58390836,87808.0,87807.0,0.6048724]
[1742918005996,0.58390836,87808.0,87807.0,0.491]
[1742918006401,0.63300836,87808.0,87807.0,0.491]
[1742918006911,0.58390836,87808.0,87807.0,0.491]
[1742918007108,0.53770836,87808.0,87807.0,0.6048724]
[1742918007609,0.53770836,87808.0,87807.0,0.491]
[1742918008207,0.53770836,87808.0,87807.0,0.6048724]
[1742918008396,0.48970836,87808.0,87807.0,0.6048724]
[1742918008805,0.53440836,87808.0,87807.0,0.6048724]
[1742918008997,0.53440836,87808.0,87807.0,0.491]
[1742918009203,0.53440836,87808.0,87807.0,0.6048724]
[1742918010117,0.48970836,87808.0,87807.0,0.6048724]
[1742918010512,0.53440836,87808.0,87807.0,0.6048724]
[1742918011119,0.48970836,87808.0,87807.0,0.6048724]
[1742918011908,0.12890836,87808.0,87807.0,0.6048724]
[1742918012907,0.01503726,87808.0,87807.0,0.6048724]
[1742918013103,0.12890836,87808.0,87807.0,0.6048724]
[1742918014104,0.12738836,87808.0,87807.0,0.6048724]
[1742918014309,0.01503726,87808.0,87807.0,0.6998724]
[1742918014509,0.12738836,87808.0,87807.0,0.6998724]
[1742918017110,0.48818836,87808.0,87807.0,0.586]
[1742918017327,0.57774837,87808.0,87807.0,0.5393]
[1742918017627,1.01144635,87808.0,87807.0,0.5393]
[1742918021823,1.0705017,87808.0,87807.0,0.5393]
[1742918022024,1.05640837,87808.0,87807.0,0.6531724]
[1742918022228,0.28610837,87808.0,87807.0,0.6531724]
[1742918022424,0.28610837,87808.0,87807.0,0.6965724]
[1742918022425,0.12894837,87808.0,87807.0,0.6965724]
[1742918022627,0.12894837,87808.0,87807.0,1.0573724]
[1742918023330,0.12738836,87808.0,87807.0,1.0573724]
[1742918024126,0.12738836,87808.0,87807.0,1.0563724]
[1742918024331,0.01351726,87808.0,87807.0,1.0563724]
[1742918024514,0.1138711,87808.0,87807.0,1.1702448]
[1742918024830,0.12735719,87808.0,87807.0,1.1702448]
[1742918025325,0.01348609,87808.0,87807.0,1.1702448]
[1742918025516,0.00017079,87809.0,87808.0,0.1138711]
[1742918025715,0.00017079,87809.0,87808.0,0.5938711]
[1742918025916,0.11404059,87809.0,87808.0,0.6832711]
[1742918026532,0.12765146,87809.0,87808.0,0.6832711]
[1742918026734,0.12765146,87809.0,87808.0,0.5694]
[1742918026926,0.17415146,87809.0,87808.0,0.6832711]
[1742918029226,0.17567146,87809.0,87808.0,0.6832711]
[1742918029429,0.17415146,87809.0,87808.0,0.6832711]
[1742918029945,0.17515146,87809.0,87808.0,0.6832711]
[1742918032236,0.17415146,87809.0,87808.0,0.6832711]
[1742918032534,0.17515146,87809.0,87808.0,0.6832711]
[1742918033127,0.17415146,87809.0,87808.0,0.6832711]
[1742918033323,0.17415146,87809.0,87808.0,0.5694]
[1742918033537,0.17415146,87809.0,87808.0,0.6832711]
[1742918033838,0.17415146,87809.0,87808.0,0.5694]
[1742918034037,0.17415146,87809.0,87808.0,0.6832711]
[1742918034331,0.21805146,87809.0,87808.0,0.6832711]
[1742918035038,0.17415146,87809.0,87808.0,0.6832711]
[1742918036937,0.17415146,87809.0,87808.0,0.6842711]
[1742918038440,0.01378166,87809.0,87808.0,0.6842711]
[1742918038939,0.12765146,87809.0,87808.0,0.6842711]
[1742918040634,0.12765146,87809.0,87808.0,0.6832711]
[1742918040941,0.12765146,87809.0,87808.0,0.6842711]
[1742918041534,0.17385146,87809.0,87808.0,0.6842711]
[1742918042041,0.17385146,87809.0,87808.0,0.6852711]
[1742918042241,0.12765146,87809.0,87808.0,0.6852711]
[1742918043040,0.12765146,87809.0,87808.0,0.6842711]
[1742918043241,0.17385146,87809.0,87808.0,0.3424]
[1742918043432,0.21987146,87809.0,87808.0,0.3424]
[1742918044040,0.21987146,87809.0,87808.0,0.3414]
[1742918044248,0.21987146,87809.0,87808.0,0.1586]
[1742918044852,0.0569385,87804.0,87800.0,0.1]
[1742918045035,0.1138802,87801.0,87800.0,0.012693]
[1742918045241,0.24112758,87801.0,87800.0,0.012693]
[1742918045437,0.35604373,87801.0,87800.0,0.012693]
[1742918045641,0.3322402,87801.0,87800.0,0.282693]
[1742918045843,0.3322402,87801.0,87800.0,0.012693]
[1742918046546,0.3322402,87801.0,87800.0,0.013693]
[1742918046944,0.75582254,87801.0,87800.0,1e-07]
[1742918047145,0.1139023,87784.0,87783.0,0.0523]
[1742918047345,0.4747023,87784.0,87783.0,0.0523]
[1742918047751,0.4747023,87784.0,87782.0,8e-05]
[1742918047752,0.1139036,87783.0,87782.0,8e-05]
[1742918048044,0.2161036,87783.0,87782.0,8e-05]
[1742918048248,0.2176236,87783.0,87782.0,8e-05]
[1742918048449,0.2176236,87783.0,87782.0,0.00219279]
[1742918048747,0.2176236,87783.0,87777.0,8e-05]
[1742918048748,0.1139087,87779.0,87778.0,0.10446011]
[1742918049045,0.1139126,87776.0,87775.0,0.00045571]
[1742918049255,0.5879526,87776.0,87775.0,0.00045571]
[1742918050653,0.5879526,87776.0,87775.0,0.21045571]
[1742918051038,0.5881126,87776.0,87775.0,0.21045571]
[1742918051350,0.5881126,87776.0,87775.0,0.32436961]
[1742918051550,0.4762326,87776.0,87775.0,0.56436961]
[1742918052152,0.4762326,87776.0,87775.0,0.67126961]
[1742918052350,0.00152,87776.0,87775.0,2.17126961]
[1742918052555,0.1708643,87780.0,87779.0,0.1139074]
[1742918052753,0.17242431,87780.0,87779.0,0.6408074]
[1742918052952,0.22342431,87780.0,87779.0,0.6408074]
[1742918054449,0.22342431,87780.0,87779.0,0.5269]
[1742918054648,0.2218643,87780.0,87779.0,0.3369]
[1742918054954,0.27542431,87780.0,87779.0,0.6708087]
[1742918055148,0.27542431,87780.0,87779.0,0.5569]
[1742918055540,0.27642431,87780.0,87779.0,0.5569]
[1742918056353,0.22442431,87780.0,87779.0,0.5569]
[1742918056844,0.22442431,87780.0,87779.0,0.6708087]
[1742918057243,0.22442431,87780.0,87779.0,0.5569]
[1742918058045,0.22442431,87780.0,87779.0,0.6708087]
[1742918058349,0.22442431,87780.0,87779.0,0.3069]
[1742918058647,0.22442431,87780.0,87779.0,0.3169]
[1742918058851,0.22442431,87780.0,87779.0,0.6208087]
[1742918059045,0.17342431,87780.0,87779.0,0.6208087]
[1742918059445,0.22422431,87780.0,87779.0,0.6208087]
[1742918059653,0.22422431,87780.0,87779.0,2.1208087]
[1742918059858,0.22422431,87780.0,87779.0,0.6208087]
[1742918060358,0.11031431,87780.0,87779.0,0.6208087]
[1742918060561,0.001,87780.0,87779.0,0.6208087]
[1742918060947,0.1149074,87780.0,87779.0,2.1208087]
[1742918061246,0.1149074,87780.0,87779.0,2.2308087]
[1742918061441,0.001,87780.0,87779.0,2.2308087]
[1742918061654,0.0569525,87782.0,87781.0,0.1139061]
[1742918061854,0.0569525,87782.0,87781.0,1.1017061]
[1742918062459,0.0569497,87787.0,87783.0,0.0569514]
[1742918062752,0.16863789,87791.0,87790.0,0.1138945]
[1742918062753,0.00017079,87791.0,87790.0,0.1138945]
[1742918062949,0.115624,87791.0,87790.0,0.9946945]
[1742918063148,0.11406399,87791.0,87790.0,1.1010945]
[1742918063347,0.00017079,87791.0,87790.0,1.1010945]
[1742918063745,0.11406399,87791.0,87790.0,1.1010945]
[1742918064143,0.00017079,87791.0,87790.0,1.1010945]
[1742918064751,0.113884,87799.0,87798.0,0.1138828]
[1742918064961,0.113884,87799.0,87798.0,0.7917828]
[1742918064962,0.115404,87799.0,87798.0,0.7917828]
[1742918065149,0.1142821,87800.0,87799.0,0.1138828]
[1742918065349,0.1158821,87800.0,87799.0,0.7202828]
[1742918065651,0.1142815,87800.0,87799.0,0.7202828]
[1742918065856,0.0004,87800.0,87799.0,0.7202828]
[1742918066059,0.1142815,87800.0,87799.0,0.7202828]
[1742918066243,0.1158815,87800.0,87799.0,0.6064]
[1742918067153,0.1158815,87800.0,87799.0,0.5]
[1742918067356,0.1138919,87792.0,87791.0,0.00017089]
[1742918067556,0.4762119,87792.0,87791.0,0.11017089]
[1742918067758,0.5809119,87792.0,87791.0,0.11017089]
[1742918068156,0.5809119,87792.0,87791.0,0.21017089]
[1742918068860,0.1685119,87792.0,87791.0,0.32406409]
[1742918069251,0.1715119,87792.0,87791.0,0.31437089]
[1742918069763,0.2299119,87792.0,87791.0,0.31437089]
[1742918069959,0.2289119,87792.0,87791.0,0.31437089]
[1742918070158,0.2289119,87792.0,87791.0,0.26157089]
[1742918070564,0.2269119,87792.0,87791.0,0.26157089]
[1742918071159,0.1715119,87792.0,87791.0,0.31437089]
[1742918071461,0.1715119,87792.0,87791.0,0.42826409]
[1742918071653,0.5323119,87792.0,87791.0,0.31437089]
[1742918071858,0.01717445,87809.0,87796.0,0.0569431]
[1742918072157,0.37041309,87840.0,87827.0,0.1138465]
[1742918072462,0.37041309,87840.0,87832.0,0.11384]
[1742918072463,0.01719799,87836.0,87832.0,0.11384]
[1742918072759,0.01719799,87836.0,87832.0,0.52064]
[1742918072760,0.3854587,87833.0,87832.0,0.52064]
[1742918072964,0.27162,87833.0,87832.0,0.52064]
[1742918073157,0.27162,87833.0,87832.0,0.63448]
[1742918073459,0.27162,87833.0,87832.0,0.74448]
[1742918073696,0.27562,87833.0,87832.0,0.63448]
[1742918073865,0.27562,87833.0,87832.0,0.52928]
[1742918074362,0.28062,87833.0,87832.0,0.52928]
[1742918075748,0.33272,87833.0,87832.0,0.52928]
[1742918075953,0.06222001,87833.0,87832.0,0.52928]
[1742918076865,0.01012001,87833.0,87832.0,0.52928]
[1742918077954,0.01719799,87836.0,87832.0,0.52928]
[1742918077955,0.01719799,87836.0,87835.0,0.1138361]
[1742918078159,0.16372,87847.0,87840.0,0.1138296]
[1742918078459,0.16372,87847.0,87840.0,0.6345096]
[1742918078664,0.0518,87847.0,87840.0,0.6345096]
[1742918079069,0.0004,87848.0,87847.0,0.1138206]
[1742918079363,0.0004,87848.0,87847.0,0.9852206]
[1742918079562,0.0004,87848.0,87847.0,1.0904206]
[1742918079750,0.0004,87848.0,87847.0,0.9766]
[1742918079951,0.1142193,87848.0,87847.0,0.4258]
[1742918080158,0.01837054,87848.0,87847.0,0.5396206]
[1742918080358,0.01845053,87848.0,87847.0,0.4496206]
[1742918080561,0.0311974,87848.0,87847.0,0.7306206]
[1742918080763,0.1438974,87848.0,87847.0,0.7306206]
[1742918081068,0.0361974,87848.0,87847.0,1.0914206]
[1742918081269,0.0350374,87848.0,87847.0,1.0914206]
[1742918081863,0.0350374,87848.0,87847.0,0.8114206]
[1742918082063,0.0350374,87848.0,87847.0,0.9014206]
[1742918082261,0.03615741,87848.0,87847.0,0.9014206]
[1742918082964,0.0350374,87848.0,87847.0,0.5406206]
[1742918083869,0.03611741,87848.0,87847.0,0.5406206]
[1742918084375,0.0350374,87848.0,87847.0,0.5406206]
[1742918085070,0.03611741,87848.0,87847.0,0.5406206]
[1742918085268,0.1488567,87848.0,87847.0,0.5406206]
[1742918085571,0.26185671,87848.0,87847.0,0.0016]
[1742918085758,0.26185671,87848.0,87847.0,0.001]
[1742918086273,0.36965671,87848.0,87847.0,0.001]
[1742918089568,0.0569185,87835.0,87830.0,0.2276777]
[1742918089767,0.0569185,87835.0,87832.0,0.17076]
[1742918089768,0.11384,87833.0,87832.0,0.17076]
[1742918090067,0.115,87833.0,87832.0,0.45136]
[1742918090268,0.2204,87833.0,87832.0,0.17136]
[1742918090473,0.22814687,87833.0,87832.0,0.22686]
[1742918090669,0.22814687,87833.0,87832.0,0.11302]
[1742918091069,0.22814687,87833.0,87832.0,0.39302]
[1742918091263,0.17614687,87833.0,87832.0,0.65802]
[1742918091874,0.17614687,87833.0,87832.0,0.44802]
[1742918092076,0.22814687,87833.0,87832.0,0.44802]
[1742918092474,0.23214687,87833.0,87832.0,0.44802]
[1742918093376,0.23214687,87833.0,87832.0,0.1111]
[1742918093768,0.23214687,87833.0,87832.0,0.22494]
[1742918093969,0.23214687,87833.0,87832.0,0.46494]
[1742918094578,0.1138439,87829.0,87828.0,8e-05]
[1742918094768,0.11508391,87829.0,87828.0,8e-05]
[1742918095170,0.11508391,87829.0,87821.0,0.1659539]
[1742918095171,0.1138491,87825.0,87821.0,0.1063]
[1742918095366,0.22704911,87825.0,87824.0,0.23077079]
[1742918095565,0.22704911,87825.0,87824.0,0.33787079]
[1742918095983,0.23479598,87825.0,87824.0,0.33787079]
[1742918096368,0.24801561,87825.0,87824.0,0.33787079]
[1742918096570,0.24801561,87825.0,87824.0,0.33795079]
[1742918097382,0.24801561,87825.0,87824.0,0.10795079]
[1742918098270,0.24901561,87825.0,87824.0,0.10795079]
[1742918098472,0.25001561,87825.0,87824.0,0.10795079]
[1742918098672,0.24901561,87825.0,87824.0,0.10795079]
[1742918098871,0.25101561,87825.0,87824.0,0.10795079]
[1742918099269,0.25201561,87825.0,87824.0,0.10795079]
[1742918099474,0.25201561,87825.0,87824.0,0.32795079]
[1742918100068,0.24426874,87825.0,87824.0,0.32795079]
[1742918100269,0.24426874,87825.0,87824.0,0.10795079]
[1742918100470,0.24426874,87825.0,87804.0,0.0569381]
[1742918100471,0.0569309,87816.0,87797.0,0.3608]
[1742918100671,0.1138698,87809.0,87801.0,0.0541]
[1742918100970,0.2218711,87808.0,87802.0,0.0547]
[1742918101172,0.29304161,87808.0,87802.0,0.0547]
[1742918101383,0.2790111,87808.0,87802.0,0.0547]
[1742918101578,0.2790111,87808.0,87802.0,0.05478]
[1742918101772,0.28757192,87808.0,87802.0,0.0547]
[1742918102477,0.28757192,87808.0,87807.0,0.00145554]
[1742918102684,0.28757192,87808.0,87807.0,0.00345554]
[1742918103072,0.28757192,87808.0,87807.0,0.00245554]
[1742918103266,0.28757192,87808.0,87807.0,0.00345554]
[1742918103976,0.056931,87815.0,87812.0,0.0569326]
[1742918104180,0.1707943,87815.0,87814.0,0.113862]
[1742918104483,0.1707943,87815.0,87814.0,2.074542]
[1742918104683,0.1707943,87815.0,87814.0,2.178442]
[1742918104983,0.1707943,87815.0,87814.0,0.678442]
[1742918105175,0.17858254,87815.0,87814.0,0.678442]
[1742918105376,0.17958254,87815.0,87814.0,0.678442]
[1742918105568,0.12265024,87815.0,87814.0,2.178442]
[1742918106480,0.12165024,87815.0,87814.0,2.179442]
[1742918106676,0.12165024,87815.0,87814.0,1.959442]
[1742918106875,0.12165024,87815.0,87814.0,1.60858]
[1742918107076,0.12165024,87815.0,87814.0,0.30858]
[1742918107388,0.12265024,87815.0,87814.0,0.10858]
[1742918107772,0.12265024,87815.0,87814.0,0.6424433]
[1742918107979,0.12165024,87815.0,87814.0,0.6424433]
[1742918108281,0.12165024,87815.0,87814.0,0.4134433]
[1742918108585,0.12265024,87815.0,87814.0,0.4134433]
[1742918108786,0.12265024,87815.0,87814.0,0.4124433]
[1742918108980,0.12265024,87815.0,87814.0,0.6304433]
[1742918109285,0.12165024,87815.0,87814.0,0.6304433]
[1742918109484,0.12269025,87815.0,87814.0,0.4104433]
[1742918109685,0.12269025,87815.0,87814.0,0.4114433]
[1742918109886,0.12269025,87815.0,87814.0,0.29758]
[1742918110281,0.00882825,87815.0,87814.0,0.4114433]
[1742918110587,0.00778824,87815.0,87814.0,0.4114433]
[1742918111381,0.00878824,87815.0,87814.0,0.4114433]
[1742918111688,0.12165024,87815.0,87814.0,0.4114433]
[1742918111891,0.12265024,87815.0,87814.0,0.6394433]
[1742918112385,0.12265024,87815.0,87814.0,0.6384433]
[1742918112597,0.12265024,87815.0,87814.0,0.6394433]
[1742918112792,0.12265024,87815.0,87814.0,1.0022433]
[1742918113091,0.00778824,87815.0,87814.0,1.0022433]
[1742918113691,0.01321963,87825.0,87824.0,0.1138504]
[1742918113993,0.11424,87832.0,87831.0,0.1138413]
[1742918114198,0.11524,87832.0,87831.0,0.7193813]
[1742918114387,0.11524,87832.0,87831.0,0.7736813]
[1742918114697,0.11424,87832.0,87831.0,0.7736813]
[1742918114890,0.3608,87845.0,87831.0,0.7736813]
[1742918114891,0.0569159,87839.0,87838.0,0.1138309]
[1742918115087,0.12801502,87840.0,87839.0,0.1138309]
[1742918115289,0.11500169,87840.0,87839.0,0.31348]
[1742918115593,0.12856956,87840.0,87839.0,0.31348]
[1742918116480,0.24296956,87840.0,87839.0,0.31348]
[1742918116697,0.18406956,87840.0,87839.0,0.31348]
[1742918116988,0.19206956,87840.0,87839.0,0.31348]
[1742918117385,0.19206956,87840.0,87839.0,0.11348]
[1742918117786,0.13656956,87840.0,87839.0,0.33348]
[1742918118193,0.13656956,87840.0,87839.0,0.4473109]
[1742918118394,0.49736956,87840.0,87839.0,0.05668]
[1742918118595,0.61556956,87840.0,87839.0,0.00068]
[1742918118793,0.1138335,87837.0,87836.0,8e-05]
[1742918119001,0.2267935,87837.0,87836.0,1e-07]
[1742918119303,0.1138504,87824.0,87823.0,0.00062625]
[1742918119602,0.5877304,87824.0,87823.0,0.01062625]
[1742918119789,0.7059304,87824.0,87823.0,0.01062625]
[1742918121499,0.7059304,87824.0,87823.0,0.01122625]
[1742918121897,0.7059304,87824.0,87823.0,0.01062625]
[1742918122096,0.7089304,87824.0,87823.0,0.01126625]
[1742918122492,0.7109304,87824.0,87823.0,0.01126625]
[1742918122692,0.7109304,87824.0,87823.0,0.01062625]
[1742918122903,0.7089304,87824.0,87823.0,0.01162625]
[1742918123589,0.7089304,87824.0,87823.0,0.00162625]
[1742918123900,0.7089304,87824.0,87823.0,0.00062625]
[1742918124509,0.7099304,87824.0,87823.0,0.00130625]
[1742918124807,0.7099304,87824.0,87823.0,0.00062625]
[1742918124988,0.7079304,87824.0,87823.0,0.00062625]
[1742918125302,0.7099304,87824.0,87823.0,0.00122625]
[1742918125497,0.7099304,87824.0,87823.0,0.00062625]
[1742918125702,0.7099304,87824.0,87823.0,0.00122625]
[1742918125895,0.5968504,87824.0,87823.0,0.00122625]
[1742918126095,0.2286904,87824.0,87823.0,0.11447795]
[1742918126288,0.2286904,87824.0,87823.0,0.22130625]
[1742918126492,0.1168504,87824.0,87823.0,0.33890625]
[1742918126693,0.1178504,87824.0,87823.0,0.33890625]
[1742918126995,0.1178504,87824.0,87823.0,0.11890625]
[1742918127996,0.1178504,87824.0,87823.0,0.47275795]
[1742918128204,0.1168504,87824.0,87823.0,0.47275795]
[1742918128504,0.1178504,87824.0,87823.0,0.47275795]
[1742918128704,0.1158504,87824.0,87823.0,0.47275795]
[1742918129005,0.1158504,87824.0,87823.0,0.69275795]
[1742918129299,0.1148504,87824.0,87823.0,0.69275795]
[1742918130101,0.001,87824.0,87823.0,0.69275795]
[1742918130906,0.1148504,87824.0,87823.0,0.69275795]
[1742918131201,0.170752,87837.0,87836.0,0.1138335]
[1742918131505,0.171472,87837.0,87836.0,0.8084683]
[1742918131703,0.171472,87837.0,87836.0,0.8090683]
[1742918132205,0.00072,87837.0,87836.0,1.0090683]
[1742918132510,0.01373866,87840.0,87839.0,0.1138309]
[1742918132707,0.113823,87846.0,87845.0,0.1138232]
[1742918132899,0.1149415,87848.0,87847.0,0.1138206]
[1742918133106,0.1142215,87848.0,87847.0,0.5144206]
[1742918133292,0.1142215,87848.0,87847.0,0.6864206]
[1742918133605,0.0004,87848.0,87847.0,0.6864206]
[1742918133798,0.1142193,87848.0,87847.0,0.6864206]
[1742918133995,0.1149393,87848.0,87847.0,0.6864206]
[1742918134197,0.12869985,87848.0,87847.0,0.6864206]
[1742918135508,0.13869985,87848.0,87847.0,0.6874206]
[1742918138104,0.13869985,87848.0,87847.0,0.0016]